Cogmind - Beta 13 @@@ ROGUE MODE // 2024.05.24 @ 23:44:48 Player: BatSpy Result: Self-destructed Performance ------------- Evolutions (5) 2500 Regions Visited (6) 1200 Robots Destroyed (14) 70 Value Destroyed (461) 461 Prototype IDs (12) 240 Alien Tech Used (0) 0 Bonus (533) 533 TOTAL SCORE: 5004 Bonus ------- High Alert Combat Kills 33 Entered DSFs 500 Cogmind --------- Core Integrity 717/1000 Matter 300/300 Energy 100/100 System Corruption 11% Temperature Cool (0) Movement Walking (120) Location -5/Factory Parts ------- > --- POWER (3) -------- (None) > --- PROPULSION (6) --- Carbon-fiber Leg > --- UTILITY (4) ------ Scrap Engine > --- WEAPON (4) ------- (None) > --- INVENTORY (5) ---- Authchip [R/Combat] Authchip [R/Combat] Authchip [Power] Authchip [Propulsion] Authchip [Weapon] Peak State ------------ > --- POWER ------------ Angular Momentum Engine Angular Momentum Engine Multi-Fission Core > --- PROPULSION ------- Titanium Leg Titanium Leg Treaded Spiked-Titanium Exoskeleton > --- UTILITY ---------- Armored Scrap Engine > --- WEAPON ----------- Compact Ion Cannon Assault Cannon Ballistic Proton Construct/G > --- INVENTORY -------- Authchip [R/Combat] Authchip [R/Combat] Authchip [Power] Authchip [Propulsion] Authchip [Weapon] [Rating: 59] Favorites ----------- Power Constructs Engine Ion Engine Power Core Constructs Propulsion Titanium Leg Treads Constructs Leg Titanium Leg Wheel Compact Wheel Utility Armored Scrap Engine Device Armored Scrap Engine Processor Targeting Computer Weapon Constructs Energy Gun Constructs Energy Cannon Improved EM Pulse Cannon Ballistic Gun Constructs Ballistic Cannon Assault Cannon Build | -11 -10 -10 -8 -6 -6 -5 ------- Run | Yrd Mat Sub Rec Fac DSF Fac Slots Evolved 10 | . . . . 8 . 2 Power 2 | . . . . 2 . . Propulsion 4 | . . . . 3 . 1 Utility 2 | . . . . 2 . . Weapon 2 | . . . . 1 . 1 Parts Attached 23 | 5 3 4 4 1 3 3 Power 5 | 1 . 1 . . 3 . Engine 5 | 1 . 1 . . 3 . Core . | . . . . . . . Reactor . | . . . . . . . Propulsion 6 | 2 . 1 2 . . 1 Treads 1 | . . 1 . . . . Leg 3 | . . . 2 . . 1 Wheel 2 | 2 . . . . . . Hover . | . . . . . . . Flight . | . . . . . . . Utility 3 | . 2 . 1 . . . Device 2 | . 1 . 1 . . . Storage . | . . . . . . . Processor 1 | . 1 . . . . . Hackware . | . . . . . . . Protection . | . . . . . . . Artifact . | . . . . . . . Weapon 9 | 2 1 2 1 1 . 2 Energy Gun 2 | . . 2 . . . . Energy Cannon 2 | . . . . 1 . 1 Ballistic Gun 4 | 2 1 . . . . 1 Ballistic Cannon 1 | . . . 1 . . . Launcher . | . . . . . . . Special Weapon . | . . . . . . . Impact Weapon . | . . . . . . . Slashing Weapon . | . . . . . . . Piercing Weapon . | . . . . . . . Special Melee Weapon . | . . . . . . . Unidentified Prototypes 1 | . . . . 1 . . Corrupted Parts 1 | . . . . . . 1 System Corruption 4 | . . . . . . 4 Parts Lost 20 | . . 2 . . 10 8 Power 6 | . . . . . 4 2 Propulsion 6 | . . 1 . . 4 1 Utility 2 | . . 1 . . . 1 Weapon 6 | . . . . . 2 4 Highest Loss Streak 6 | . . 2 . . 6 5 To Critical Strikes . | . . . . . . . Average Slot Usage (%) 71 | . 98 93 83 51 45 33 Engine 10 | . 14 14 13 6 15 . Core 1 | . . . . . . 4 Treads 2 | . . 1 2 1 6 4 Leg 9 | . . . 22 18 6 . Wheel 8 | . 28 23 2 . . . Device 10 | . 13 10 14 6 6 5 Processor 3 | . 12 14 . . . . Energy Gun 3 | . . 7 2 . . 7 Energy Cannon 1 | . . . . 4 3 4 Ballistic Gun 9 | . 28 20 2 . . 3 Ballistic Cannon 9 | . . . 22 13 5 . Naked Turns . | . . . . . . . Heaviest Build 42 | 7 8 9 13 16 42 32 Greatest Support 68 | 26 26 26 34 68 57 19 Greatest Overweight (x) 6 | . . . 4 . 2 6 Average Overweight (x) . | . . . . . . 1 Largest Inventory Capacity 5 | 5 5 5 5 5 5 5 Average Capacity 5 | 5 5 5 5 5 5 5 Most Carried 5 | 3 3 4 5 5 5 5 Average Carried 3 | 1 2 2 3 5 5 5 Final Capacity 5 | 5 5 5 5 5 5 5 Final Carried 5 | 1 2 3 5 5 5 5 Scrap Engine Consumption 60 | . . . 20 . 29 11 Constructs Created 6 | . . . 2 1 . 3 Constructs Modified 11 | . . . 2 3 . 6 Class Distribution -------------------- 41% | Construct 39% | Mutant 19% | Gunner Dominant Class ---------------- Mutant | -10/Materials Mutant | -10/Subcaves Construct | -8/Recycling Construct | -6/Factory Construct | -6/DSF Gunner | -5/Factory Resources | -11 -10 -10 -8 -6 -6 -5 ----------- Run | Yrd Mat Sub Rec Fac DSF Fac Matter Collected 659 | 154 60 132 180 . 11 122 Remotely . | . . . . . . . Salvage Created 721 | . . 105 360 . . 256 Parts 19 | . . 4 7 . . 8 Haulers Intercepted . | . . . . . . . Recyclers Shooed . | . . . . . . . Parts Field Recycled . | . . . . . . . Retrieved Matter . | . . . . . . . Parts Self-Destructed 4 | . . 4 . . . . Prevented . | . . . . . . . Kills | -11 -10 -10 -8 -6 -6 -5 ------- Run | Yrd Mat Sub Rec Fac DSF Fac Combat Hostiles Destroyed 11 | . . 4 3 . . 4 Guns 7 | . . 4 . . . 3 Cannons 4 | . . . 3 . . 1 Classes Destroyed 5 | . . 2 2 . . 1 Recycler 1 | . . . 1 . . . Turret 2 | . . 2 . . . . Swarmer 4 | . . 4 . . . . Grunt 4 | . . . . . . 4 Sentry 3 | . . . 3 . . . Best Kill Streak 4 | . . 4 1 . . 3 Combat Bots Only 4 | . . 4 1 . . 3 Max Kills in Single Turn 2 | . . 1 1 . . 2 Gunslinging . | . . . . . . . Exploded . | . . . . . . . Melee . | . . . . . . . Uniques/NPCs Destroyed . | . . . . . . . Combat | -11 -10 -10 -8 -6 -6 -5 -------- Run | Yrd Mat Sub Rec Fac DSF Fac Hostile Shots Fired 366 | . . 95 28 . 174 69 Missed 118 | . . 38 8 . 58 14 Damage Taken 3500 | . . 378 301 . 1741 1080 Core 728 | . . 126 75 . 244 283 Absorbed by Shields . | . . . . . . . Core Remaining (%) 63 | 100 . . 19 . 71 . Volleys Fired 70 | . . 22 32 . 1 15 Largest 4 | . . 2 2 . 2 4 Hottest 204 | . . 90 74 . 120 204 Shots Fired 145 | . . 44 64 . 2 35 Gun 68 | . . 44 . . . 24 Cannon 77 | . . . 64 . 2 11 Launcher . | . . . . . . . Special . | . . . . . . . Kinetic 88 | . . 36 32 . . 20 Thermal 42 | . . 8 32 . 2 . Explosive . | . . . . . . . Electromagnetic 15 | . . . . . . 15 Robot Hit Streak 10 | . . 6 8 . 2 10 Robot Miss Streak 4 | . . 2 2 . 1 4 Penetration Max 1 | . . . . . . 1 Secondary Targets 1 | . . 1 . . . . Max Gunslinging Chain 1 | . . 1 . . . . Shots Hit Robots 97 | . . 31 43 . 1 22 Core Hits 36 | . . 14 13 . . 9 Critical Kills . | . . . . . . . Critical Parts Destroyed . | . . . . . . . Critical Strikes 5 | . . . 5 . . . Burn 1 | . . . 1 . . . Blast 4 | . . . 4 . . . Melee Attacks . | . . . . . . . Impact . | . . . . . . . Slashing . | . . . . . . . Piercing . | . . . . . . . Sneak Attacks . | . . . . . . . Combat Hostiles . | . . . . . . . Follow-up Attacks . | . . . . . . . Damage Inflicted 1638 | . . 278 718 . 29 613 Guns 705 | . . 278 . . . 427 Cannons 933 | . . . 718 . 29 186 Explosions . | . . . . . . . Melee . | . . . . . . . Ramming . | . . . . . . . Kinetic 1163 | . . 210 571 . . 382 Thermal 244 | . . 68 147 . 29 . Explosive . | . . . . . . . Electromagnetic 231 | . . . . . . 231 Impact . | . . . . . . . Slashing . | . . . . . . . Piercing . | . . . . . . . Highest Corruption 11 | . . . . . . 11 Average Corruption 6 | . . . . . . 6 Corruption Purged . | . . . . . . . Corruption Blocked . | . . . . . . . Effects 1 | . . . . . . 1 Matter Fused 1 | . . . . . . 1 Overload Shots . | . . . . . . . Overflow Damage 18 | . . . 18 . . . Projectiles 18 | . . . 18 . . . Explosions . | . . . . . . . Melee . | . . . . . . . Knockbacks 1 | . . . 1 . . . Impact . | . . . . . . . Kinetic 1 | . . . 1 . . . Secondary . | . . . . . . . Self-Inflicted Damage . | . . . . . . . Shots . | . . . . . . . Rammed . | . . . . . . . Targets Rammed . | . . . . . . . Kicked . | . . . . . . . Crushed . | . . . . . . . Highest Temperature 509 | . . 2 220 . 48 509 Average Temperature 118 | . . 2 62 . 28 234 Received Heat Transfer 837 | . . 288 81 . 198 270 Effects 7 | . . . . . . 7 Shutdowns 2 | . . . . . . 2 Matter Decay 1 | . . . . . . 1 Damage (minor) 1 | . . . . . . 1 Damage (major) 3 | . . . . . . 3 Siege Activations . | . . . . . . . Robots Corrupted . | . . . . . . . Combat Hostiles . | . . . . . . . Parts Fried 1 | . . . . . . 1 Impact Corruptions . | . . . . . . . Robots Melted . | . . . . . . . Combat Hostiles . | . . . . . . . Parts Melted . | . . . . . . . Heat Transferred 786 | . . 174 575 . 37 . Parts Sabotaged . | . . . . . . . Parts Stolen . | . . . . . . . Parts Stripped . | . . . . . . . Power Chain Reactions . | . . . . . . . Alert | -11 -10 -10 -8 -6 -6 -5 ------- Run | Yrd Mat Sub Rec Fac DSF Fac Peak Influence 818 | . 25 . 818 287 200 119 Initial 818 | . . . 818 287 200 75 Average 308 | . 10 . 698 287 169 63 Maximum Alert Level 3 | . . . 3 1 1 . Low Security (%) 54 | 100 100 . . . 69 100 Level 1 7 | . . . . 100 30 . Level 2 23 | . . . 60 . . . Level 3 14 | . . . 39 . . . Level 4 . | . . . . . . . Level 5 . | . . . . . . . High Security . | . . . . . . . Max Security . | . . . . . . . Squads Dispatched 5 | . 1 . . . 2 2 Investigation 1 | . . . . . . 1 Extermination 1 | . . . . . . 1 Reinforcement 3 | . 1 . . . 2 . Assault . | . . . . . . . Garrison . | . . . . . . . Intercept . | . . . . . . . Searches Triggered . | . . . . . . . Construction Impeded . | . . . . . . . Haulers Reinforced . | . . . . . . . Active Scanning Responses . | . . . . . . . Cargo Convoy Interrupts . | . . . . . . . Stealth | -11 -10 -10 -8 -6 -6 -5 --------- Run | Yrd Mat Sub Rec Fac DSF Fac Distress Signals . | . . . . . . . Communications Jammed . | . . . . . . . Distress Signals . | . . . . . . . Times Spotted 73 | . 1 53 3 . 9 7 Peak Tracking Total 11 | . 2 6 1 . 11 5 Tactical Retreats 8 | . . 6 . . 1 1 Traps | -11 -10 -10 -8 -6 -6 -5 ------- Run | Yrd Mat Sub Rec Fac DSF Fac Traps Triggered 1 | . 1 . . . . . Indirectly . | . . . . . . . Trap Hack Attempts . | . . . . . . . Triggered . | . . . . . . . Disarmed . | . . . . . . . Reprogrammed 6 | . 6 . . . . . Reused 1 | . 1 . . . . . Traps Extracted . | . . . . . . . Installed . | . . . . . . . Triggered 1 | . 1 . . . . . Machines | -11 -10 -10 -8 -6 -6 -5 ---------- Run | Yrd Mat Sub Rec Fac DSF Fac Machines Disabled 2 | . . . . . . 2 Max in Single Turn 1 | . . . . . . 1 Machines Repaired . | . . . . . . . Machines Dismantled . | . . . . . . . Machines Sabotaged . | . . . . . . . Overloaded Fab Kills . | . . . . . . . Hacking | -11 -10 -10 -8 -6 -6 -5 --------- Run | Yrd Mat Sub Rec Fac DSF Fac Machines Accessed 14 | . 1 . 10 2 . 1 Terminals 9 | . 1 . 6 1 . 1 Fabricators . | . . . . . . . Repair Stations . | . . . . . . . Recycling Units 4 | . . . 4 . . . Scanalyzers 1 | . . . . 1 . . Garrison Access . | . . . . . . . Total Hacks 36 | . 3 . 25 3 . 5 Successful 16 | . 2 . 10 2 . 2 Failed 20 | . 1 . 15 1 . 3 Catastrophic 2 | . . . 2 . . . Database Lockouts . | . . . . . . . Manual 3 | . . . 3 . . . Terminals 24 | . 3 . 15 1 . 5 Fabricators . | . . . . . . . Repair Stations . | . . . . . . . Recycling Units 10 | . . . 10 . . . Scanalyzers 2 | . . . . 2 . . Garrison Access . | . . . . . . . Terminal Hacks 11 | . 2 . 6 1 . 2 Record 2 | . . . 1 . . 1 Prototype ID Bank 3 | . . . 2 . . 1 Open DSF 1 | . . . . 1 . . Reprogram Traps 1 | . 1 . . . . . Investigation Status 1 | . . . 1 . . . Zone Layout 3 | . 1 . 2 . . . Fabricator Hacks . | . . . . . . . Repair Station Hacks . | . . . . . . . Recycling Unit Hacks 4 | . . . 4 . . . Report Inventory 1 | . . . 1 . . . Retrieve Components 3 | . . . 3 . . . Scanalyzer 1 | . . . . 1 . . Insert Component 1 | . . . . 1 . . Garrison Access Hacks . | . . . . . . . Unauthorized Hacks . | . . . . . . . Terminals . | . . . . . . . Fabricators . | . . . . . . . Repair Stations . | . . . . . . . Recycling Units . | . . . . . . . Scanalyzers . | . . . . . . . Garrison Access . | . . . . . . . Data Cores Recovered . | . . . . . . . Used . | . . . . . . . Hacking Detections 11 | . 1 . 8 1 . 1 Full Trace Events 2 | . . . 1 . . 1 Feedback Events . | . . . . . . . Feedback Blocked . | . . . . . . . Robot Schematics Acquired . | . . . . . . . Robots Built . | . . . . . . . Authchips . | . . . . . . . Time . | . . . . . . . Total Robot Build Rating . | . . . . . . . Part Schematics Acquired . | . . . . . . . Parts Built . | . . . . . . . Authchips . | . . . . . . . Time . | . . . . . . . Total Part Build Rating . | . . . . . . . Parts Repaired . | . . . . . . . Time . | . . . . . . . Parts Recycled . | . . . . . . . Recycled Matter . | . . . . . . . Retrieved Matter . | . . . . . . . Retrieved Components 3 | . . . 3 . . . Parts Scanalyzed . | . . . . . . . Part Schematics Acquired . | . . . . . . . Parts Damaged . | . . . . . . . Bothacking | -11 -10 -10 -8 -6 -6 -5 ------------ Run | Yrd Mat Sub Rec Fac DSF Fac Used RIF Installer . | . . . . . . . Robots Hacked . | . . . . . . . Non-combat . | . . . . . . . Combat . | . . . . . . . Robot Hacks Applied . | . . . . . . . Relay Couplers Released . | . . . . . . . Fabnet Peak Effective % . | . . . . . . . Robots Rewired . | . . . . . . . Allies Hacked . | . . . . . . . Hacks Repelled . | . . . . . . . Allies | -11 -10 -10 -8 -6 -6 -5 -------- Run | Yrd Mat Sub Rec Fac DSF Fac Total Allies . | . . . . . . . Largest Group . | . . . . . . . Highest-Rated Group . | . . . . . . . Highest-Rated Ally . | . . . . . . . Total Orders . | . . . . . . . Ally Attacks . | . . . . . . . Total Damage . | . . . . . . . Kills . | . . . . . . . Allies Corrupted . | . . . . . . . Allies Melted . | . . . . . . . Intel | -11 -10 -10 -8 -6 -6 -5 ------- Run | Yrd Mat Sub Rec Fac DSF Fac Robot Analysis Total . | . . . . . . . Derelict Logs Recovered . | . . . . . . . Drone Launches . | . . . . . . . Drone Recoveries . | . . . . . . . Exploration | -11 -10 -10 -8 -6 -6 -5 ------------- Run | Yrd Mat Sub Rec Fac DSF Fac Turns Passed 2835 | 49 639 142 1020 142 175 668 Spaces Moved 1267 | 42 120 78 707 52 110 158 Core 21 | 3 . . 2 . . 16 Treads 202 | . . 7 . . 66 129 Legs 667 | . . . 558 52 44 13 Wheels 377 | 39 120 71 147 . . . Hover . | . . . . . . . Flight . | . . . . . . . Fastest Speed 50 | 50 90 90 100 126 120 120 Average Speed 127 | 87 90 97 124 127 153 178 Slowest Speed 350 | 90 90 160 250 130 270 350 Overloaded Moves . | . . . . . . . Propulsion Burnouts . | . . . . . . . Robots Hopped . | . . . . . . . Cave-ins Triggered . | . . . . . . . Exploration Rate (%) 30 | 4 16 5 96 1 89 2 Regions Visited 6 Branch Regions 2 Pre-discovered Areas . | . . . . . . . Known Exits Taken 1 | . . . . 1 . . Unknown Exits Taken 4 | 1 1 1 1 . . . Scrap Searched 3 | . . 3 . . . . Spaces Dug . | . . . . . . . Terrain Destroyed 11 | . . . 7 . . 4 Melee . | . . . . . . . Projectile 11 | . . . 7 . . 4 AOE . | . . . . . . . Terrain Rammed . | . . . . . . . Walls Destroyed . | . . . . . . . Machines Disabled . | . . . . . . . Actions | -11 -10 -10 -8 -6 -6 -5 --------- Run | Yrd Mat Sub Rec Fac DSF Fac Total 2357 | 54 650 105 795 127 113 513 Wait 967 | . 524 . 31 75 . 337 Move 1261 | 41 119 77 706 51 109 158 Hop . | . . . . . . . Pick Up 24 | 7 4 2 11 . . . Fast Attach 7 | . . . . 1 3 3 Attach 13 | 5 3 1 4 . . . Detach . | . . . . . . . Swap 3 | . . 3 . . . . Drop 12 | 1 . . 11 . . . Fire 70 | . . 22 32 . 1 15 Melee . | . . . . . . . Ram . | . . . . . . . Kick . | . . . . . . . Crush . | . . . . . . . Escape Stasis . | . . . . . . . Rewire . | . . . . . . . Trap . | . . . . . . . Miscellaneous . | . . . . . . . Route ------- -11/Scrapyard -10/Materials -10/Subcaves -8/Recycling -6/Factory -6/DSF -5/Factory History --------- Turn | Location | Event 19 | -11/Scrapyard | Discovered new exit (range 15) 50 | -11/Scrapyard | Entered Materials 301 | -10/Materials | Build established: Mutant 665 | -10/Materials | Discovered new exit (range 5) 689 | -10/Materials | Entered Subcaves 730 | -10/Subcaves | Discovered new exit (range 9) 805 | -10/Subcaves | Core integrity fell below 50% 831 | -10/Subcaves | Entered Recycling 831 | -8/Recycling | Found Scrap Engine 1091 | -8/Recycling | Discovered new exit (range 12) 1204 | -8/Recycling | Build established: Construct 1600 | -8/Recycling | Core integrity fell below 20% 1851 | -8/Recycling | Entered Factory 1851 | -6/Factory | Evolved 8 slots: Power x2, Propulsion x3, Utility x2, Weapon x1 1991 | -6/Factory | Identified exit to DSF 1993 | -6/Factory | Entered DSF 2036 | -6/DSF | Additional patrols routed to DSF 2125 | -6/DSF | Lost 6 parts (2p2n2w) 2150 | -6/DSF | Discovered new exit (range 14) 2168 | -6/DSF | Entered Factory 2168 | -5/Factory | Evolved 2 slots: Propulsion x1, Weapon x1 2196 | -5/Factory | Lost 4 parts (2p2n) 2515 | -5/Factory | Build established: Gunner 2791 | -5/Factory | Lost 3 parts (1n2w) 2834 | -5/Factory | System corruption reached 10% 2836 | -5/Factory | Self-destructed Last Messages --------------- 02808_ Multi-Fission Core core remains intact and functional. 02811_ Slug penetrates Wall. 02812_ Acquired 4 matter. 02813_ Slug penetrates P-70 Sage. 02814_ System corrupted: Matter fused (-10). 02814_ Acquired 14 matter. 02815_ Slug penetrates P-70 Sage. 02816_ Acquired 4 matter. 02816_ KE Penetrator destroyed. 02819_ Acquired Corrupted Carbon-fiber Leg. 02819_ Integrated Corrupted Carbon-fiber Leg (+4). 02824_ Multi-Fission Core destroyed. 02824_ Arm. Scrap Engine damaged due to network destabilization (-5). 02825_ Acquired 5 matter. 02827_ Arm. Scrap Engine destroyed. 02827_ Scrap Engine core remains intact and functional. Map ----- +----------------------------------------------------+ | ??????????????????????????????????????????????? | | ??????????????????????????????????????????????? | | ??????????????????????????????????????????????? | | ??????????????????????????????????????????????? | | ??????????????????????????????????????????????? | | ??????????????????????????????????????????????? | | ??????????????????????????????????????????????? | | ??????????????????????????????????????????????? | | ??????????????????????????????????????????????? | | ??????????????????????????????????????????????? | | ??????????????????????????????????????????????? | | ??????????????????????????????????????????????? | | ??????????????????????????????????????????????? | | ??????????????????????????????????????????????? | | ??????????????????????????????????????????????? | | ??????????????????????????????????????????????? | | ??????????????????????????????????????????????? | | ??????????????????????????????????????????????? | | ??????????????????????????????????????????????? | | ??????????????????????????????????????????????? | | ???????????????????????????????????????##?????? | | ??????#############???????????????????# #?????? | | ??????# """T""" #################### #??????? | | ??????# # pp% # #???????? | | ??????# # ####+"#######??? | | ??????# """"""""" #!% @ # %! #??? | | ??????# + %%% # """"" #??? | | ??????# """"""""" # """ # """""" #??? | | ??????# + """ # """""" #??? | | ??????# """"""""" # # """""" #??? | | ??????# # # #??? | | ??????#??"""""""" ######## # #??? | | ?????????? #??????# #############??? | | ???????????"""""" #??????# #?????? | | ?????????????? #??????# #?????? | | ????????????????##???????# #?????? | | ?????????????????????????# #?????? | | ?????????????????????????# #?????? | | ?????????????????????????# #####+#####????? | | ?????????????????????????# # #????? | | ?????????????????????????# # #????? | | ?????????????????????????# # """ """ #????? | | ?????????????????????????# # """ """ #????? | | ?????????????????????????# # """ """ #????? | | ?????????????????????????# # #????? | | ?????????????????????????# # #????? | | ?????????????????????????# # #????? | | ?????????????????????????# ###########????? | | ????????????????????????????? ????????????????? | | ??????????????????????????????????????????????? | +----------------------------------------------------+ Best States ------------- Heat Dissipation 40 Energy Generation 36 Energy Capacity 625 Matter Stores 300 Matter Capacity 300 Sight Range 16 Terrain Scan Density 10 Evasion (%) 55 Targeting Accuracy 5 Recoil Reduction 3 Authchip Count 5 Item Schematics ----------------- None Robot Schematics ------------------ None Fabricated ------------ Nothing Alien Tech Used ----------------- None Achievements -------------- None Challenges ------------ None Game ------ Seed CoilMiningBroadsword Manual? 0 Play Time 00:23:33 Cumulative 19.5 hours Start 2024.05.23 @ 20:26:32 End 2024.05.24 @ 23:44:48 Sessions 3 Manual Loads 0 Difficulty Rogue Special Mode None Game No. 39 Rogue 39 Adventurer 0 Explorer 0 Win Type - Total 0 Types 0/0/0/0/0/0/0/0/0 Lore% 23 Gallery% 30 Achievement% 24 Wizard Run 0 Options --------- Layout 1 ASCII 0 Keyboard 0 Movement Mouse Keybinds 0 Fullscreen 2 Font 32/Smallcaps Map View 50x35 Zoom Use 0% Tactical HUD 1 Map Filters NONE Filters NONE Steam 1 RUN: 0c1fb9d7-1289-44c0-9c2e-3b300cff4ac6